bitfinex/quotes_SOLUSD_20250708
["timestamp","ask_amount","ask_price","bid_price","bid_amount"]
[1752014715942,0.7229328,151.5,151.49,4.01920733]
[1752014716616,1e-08,151.5,151.49,30.87215197]
[1752014716958,0.1,151.52,151.51,0.28432314]
[1752014717121,0.1,151.52,151.51,72.92976912]
[1752014717438,0.1,151.52,151.51,39.20544598]
[1752014717641,0.1,151.52,151.51,91.61941798]
[1752014717831,1e-08,151.56,151.55,57.52168377]
[1752014718027,1e-08,151.56,151.55,93.303732]
[1752014718642,0.1,151.61,151.6,12.54542354]
[1752014718846,0.1,151.61,151.6,6.27271177]
[1752014719515,0.1,151.61,151.59,6.27271177]
[1752014719774,0.1,151.61,151.57,33.56]
[1752014719940,12.96870945,151.61,151.56,6.27271177]
[1752014720651,12.96870945,151.61,151.55,33.56]
[1752014720652,6.5967412,151.59,151.55,39.83271177]
[1752014720948,12.86945297,151.59,151.55,6.27271177]
[1752014721821,12.86945297,151.59,151.54,6.27271177]
[1752014724266,6.27271177,151.57,151.51,27.6121]
[1752014724476,6.27271177,151.55,151.51,32.27271177]
[1752014724638,6.27271177,151.54,151.5,6.27271177]
[1752014725833,6.27271177,151.55,151.5,6.27271177]
[1752014726233,6.27271177,151.55,151.51,6.27271177]
[1752014727047,12.87124003,151.55,151.51,6.27271177]
[1752014728453,12.87124003,151.55,151.5,6.27271177]
[1752014729769,12.87124003,151.55,151.49,6.60103695]
[1752014729959,12.87124003,151.55,151.51,6.27271177]
[1752014732071,6.59852826,151.55,151.51,6.27271177]
[1752014732570,12.87124003,151.55,151.5,6.27271177]
[1752014733270,6.59852826,151.55,151.5,6.27271177]
[1752014734076,6.59852826,151.55,151.51,6.27271177]
[1752014734472,6.59852826,151.55,151.5,6.27271177]
[1752014734980,12.87086017,151.56,151.5,6.27271177]
[1752014735144,12.87086017,151.56,151.51,6.27271177]
[1752014736874,147.5,151.59,151.53,6.27271177]
[1752014737102,147.5,151.59,151.56,6.27271177]
[1752014737660,153.77271177,151.59,151.55,6.27271177]
[1752014737854,160.36958567,151.59,151.55,6.27271177]
[1752014741272,147.5,151.59,151.55,12.8711115]
[1752014742057,147.5,151.59,151.56,6.27271177]
[1752014746175,147.5,151.59,151.55,6.27271177]
[1752014746381,147.5,151.59,151.56,6.27271177]
[1752014747870,147.5,151.59,151.55,6.27271177]
[1752014748674,147.5,151.59,151.53,6.27271177]
[1752014748675,6.27271177,151.58,151.53,6.27271177]
[1752014748853,6.27271177,151.56,151.52,12.87250057]
[1752014749677,6.27271177,151.57,151.52,12.87250057]
[1752014749863,12.87045967,151.57,151.52,12.87250057]
[1752014750469,6.5977479,151.57,151.52,12.87250057]
[1752014750663,12.87045967,151.57,151.53,6.27271177]
[1752014752373,6.5977479,151.57,151.54,6.27271177]
[1752014753361,6.88167726,151.58,151.54,6.27271177]
[1752014753571,20.51482509,151.58,151.54,6.27271177]
[1752014753899,13.15438903,151.58,151.54,6.27271177]
[1752014754192,4.90920349,151.57,151.54,6.27271177]
[1752014754969,17.77961244,151.57,151.53,6.27271177]
[1752014755163,6.27271177,151.56,151.52,6.27271177]
[1752014755783,21.83220549,151.57,151.52,6.27271177]
[1752014755991,12.28384044,151.56,151.52,6.27271177]
[1752014756185,7.37079654,151.56,151.53,6.27271177]
[1752014756895,13.96899286,151.56,151.53,6.30271177]
[1752014757270,12.29288543,151.55,151.53,6.30271177]
[1752014757470,6.59819632,151.56,151.53,6.30271177]
[1752014757688,12.30704966,151.55,151.53,6.30271177]
[1752014757985,6.59819632,151.56,151.53,0.03]
[1752014757986,12.87090809,151.56,151.53,0.03]
[1752014758187,12.30704966,151.55,151.53,0.03]
[1752014758390,12.30704966,151.54,151.53,0.03]
[1752014759799,18.90596743,151.54,151.53,0.03]
[1752014767007,77.5726512,151.54,151.53,0.03]
[1752014767789,0.06,151.59,151.53,26.03]
[1752014767990,0.06,151.59,151.54,6.27271177]
[1752014768196,0.20216157,151.59,151.54,6.27271177]
[1752014768377,0.34432314,151.59,151.54,6.27271177]
[1752014768582,6.47487334,151.59,151.54,6.27271177]
[1752014768780,6.47487334,151.59,151.53,6.30271177]
[1752014768998,6.47487334,151.59,151.53,12.90205818]
[1752014769498,6.27271177,151.58,151.53,12.90205818]
[1752014770080,6.27271177,151.58,151.53,0.03]
[1752014770702,13.07176144,151.59,151.54,6.27271177]
[1752014771604,13.07176144,151.59,151.53,12.90171518]
[1752014772985,6.27271177,151.58,151.53,12.90171518]
[1752014773187,13.07176144,151.59,151.53,12.90171518]
[1752014773402,20.70546144,151.59,151.53,0.03]
[1752014773787,20.70546144,151.59,151.54,6.27271177]
[1752014774109,14.43274967,151.59,151.54,6.27271177]
[1752014775587,14.43274967,151.59,151.55,6.27271177]
[1752014776004,0.14216157,151.58,151.54,6.27271177]
[1752014777288,6.7396101,151.58,151.54,6.27271177]
[1752014778193,6.7396101,151.58,151.55,6.27271177]
[1752014779906,7.41004109,151.57,151.55,6.27271177]
[1752014780100,7.41004109,151.56,151.55,6.27271177]
[1752014781206,7.41004109,151.56,151.54,6.27271177]
[1752014781407,6.73950188,151.58,151.54,6.27271177]
[1752014781708,7.41120753,151.57,151.54,6.27271177]
[1752014781906,7.41120753,151.56,151.54,6.27271177]
[1752014782108,6.73950188,151.58,151.54,6.27271177]
[1752014782301,7.41121418,151.57,151.54,6.27271177]
[1752014782501,7.41121418,151.56,151.54,6.27271177]
[1752014782698,6.73950188,151.58,151.54,6.27271177]
[1752014782895,7.41122004,151.57,151.54,6.27271177]
[1752014783095,7.41122004,151.56,151.54,6.27271177]
[1752014783284,6.73950188,151.58,151.54,6.27271177]
[1752014783487,7.41121777,151.57,151.54,6.27271177]
[1752014783706,7.41121777,151.56,151.54,6.27271177]
[1752014783901,6.73950188,151.58,151.54,6.27271177]
[1752014784111,7.41121986,151.57,151.54,6.27271177]
[1752014784314,7.41121986,151.56,151.54,6.27271177]
[1752014784610,6.73950188,151.58,151.54,6.27271177]
[1752014784812,7.41124732,151.57,151.54,6.27271177]
[1752014784992,7.41124732,151.56,151.54,6.27271177]
[1752014785192,6.73950188,151.58,151.54,6.27271177]
[1752014785401,14.00892816,151.57,151.54,6.27271177]
[1752014785603,7.41128611,151.56,151.54,6.27271177]
[1752014785803,6.59764205,151.57,151.54,6.27271177]
[1752014786114,7.41128109,151.56,151.54,6.27271177]
[1752014786314,6.59764205,151.57,151.54,6.27271177]
[1752014786610,7.41135208,151.56,151.54,6.27271177]
[1752014786810,6.59764205,151.57,151.54,6.27271177]
[1752014787012,7.41135208,151.56,151.54,6.27271177]
[1752014787215,7.4115727,151.55,151.54,6.27271177]
[1752014787592,7.4115727,151.55,151.53,0.03]
[1752014787806,6.59776306,151.57,151.54,6.27271177]
[1752014787992,7.41174854,151.56,151.54,6.27271177]
[1752014788192,7.41174854,151.55,151.54,6.27271177]
[1752014790340,7.41174854,151.55,151.53,0.03]
[1752014790499,6.59847326,151.56,151.53,6.30271177]
[1752014790697,7.41400669,151.55,151.53,6.62934394]
[1752014791017,0.06,151.59,151.54,6.27271177]
[1752014791208,0.06,151.59,151.58,6.27271177]
[1752014791395,7.47307455,151.59,151.58,6.27271177]
[1752014792302,14.06981575,151.59,151.54,40.19884001]
[1752014792490,6.6567412,151.59,151.57,6.27271177]
[1752014793401,0.06,151.59,151.57,6.27271177]
[1752014795819,0.06,151.59,151.56,6.27271177]
[1752014796202,0.06,151.59,151.54,33.6]
[1752014796407,0.28432314,151.58,151.54,6.27271177]
[1752014797027,0.28432314,151.56,151.53,0.03]
[1752014797219,6.55703491,151.56,151.53,0.03]
[1752014798114,12.87119411,151.55,151.53,0.03]
[1752014802540,7.41413144,151.54,151.53,0.03]
[1752014813412,14.01304921,151.54,151.53,0.03]
[1752014815530,7.41413144,151.54,151.53,0.03]
[1752014820939,147.5,151.57,151.53,6.30271177]
[1752014821115,0.06,151.59,151.53,6.30271177]
[1752014821116,0.06,151.59,151.56,6.27271177]
[1752014821440,0.06,151.59,151.58,6.27271177]
[1752014821746,7.4687567,151.59,151.58,6.27271177]
[1752014823941,7.4687567,151.59,151.53,0.03]
[1752014824123,7.4087567,151.58,151.57,6.27271177]
[1752014825246,7.4087567,151.58,151.55,6.27271177]
[1752014825461,7.4087567,151.57,151.55,6.27271177]
[1752014825646,0.28432314,151.58,151.55,6.27271177]
[1752014825851,7.40484566,151.57,151.55,6.27271177]
[1752014826044,6.88159392,151.58,151.55,6.27271177]
[1752014826234,7.40472122,151.57,151.55,6.27271177]
[1752014826444,6.88159392,151.58,151.56,6.27271177]
[1752014826640,7.40472594,151.57,151.56,6.27271177]
[1752014826836,7.40472594,151.57,151.53,6.62926628]
[1752014827147,6.88159392,151.58,151.55,6.27271177]
[1752014827338,7.40451114,151.57,151.55,6.27271177]
[1752014827546,0.28432314,151.58,151.55,6.27271177]
[1752014827845,7.40451114,151.57,151.55,6.27271177]
[1752014828034,0.28432314,151.58,151.55,6.27271177]
[1752014828347,7.40425791,151.57,151.55,6.27271177]
[1752014828648,0.28432314,151.58,151.55,6.27271177]
[1752014828830,7.40429058,151.57,151.55,6.27271177]
[1752014829030,0.28432314,151.58,151.55,6.27271177]
[1752014829334,7.40403557,151.57,151.55,6.27271177]
[1752014829530,0.28432314,151.58,151.55,6.27271177]
[1752014829727,7.40407731,151.57,151.55,6.27271177]
[1752014829934,0.28432314,151.58,151.55,6.27271177]
[1752014830147,7.40407731,151.57,151.55,6.27271177]
[1752014830346,0.28432314,151.58,151.55,6.27271177]
[1752014830531,7.4038714,151.57,151.55,6.27271177]
[1752014830732,0.28432314,151.58,151.55,6.27271177]
[1752014830939,7.40375316,151.57,151.55,6.27271177]
[1752014831148,0.28432314,151.58,151.55,6.27271177]
[1752014831346,7.40342866,151.57,151.53,6.62926628]
[1752014831527,0.28432314,151.58,151.55,6.27271177]
[1752014831727,7.40342866,151.57,151.55,6.27271177]
[1752014831927,0.28432314,151.58,151.55,6.27271177]
[1752014832236,7.40342866,151.57,151.55,6.27271177]
[1752014833044,7.40342866,151.57,151.56,6.27271177]
[1752014835830,0.06,151.59,151.56,6.27271177]
[1752014836035,0.06,151.59,151.58,6.27271177]
[1752014836253,7.46207655,151.59,151.58,6.27271177]
[1752014839750,7.46207655,151.59,151.57,6.27271177]
[1752014839956,7.40207655,151.58,151.57,6.27271177]
[1752014840253,0.06,151.59,151.57,6.27271177]
[1752014842056,7.39944936,151.58,151.57,6.27271177]
[1752014842356,0.06,151.59,151.57,6.27271177]
[1752014842564,7.458464,151.59,151.57,6.27271177]
[1752014843751,0.06,151.59,151.57,6.27271177]
[1752014846862,0.06,151.59,151.57,4.01453065]
[1752014847263,7.3977352,151.58,151.57,4.01453065]
[1752014847838,7.3977352,151.58,151.54,6.59861928]
[1752014848054,13.99493989,151.58,151.55,4.01453065]
[1752014848245,25.5908592,151.59,151.56,4.01453065]
[1752014848444,7.39858734,151.58,151.56,4.01453065]
[1752014848637,25.5908592,151.59,151.56,4.01453065]
[1752014848843,7.39858734,151.58,151.56,4.01453065]
[1752014849042,25.5908592,151.59,151.56,4.01453065]
[1752014849242,7.39893194,151.58,151.56,4.01453065]
[1752014849454,18.993972,151.59,151.57,4.01453065]
[1752014849642,7.68353035,151.58,151.57,4.01453065]
[1752014850665,7.68422478,151.58,151.57,4.01453065]
[1752014854064,7.68422478,151.58,151.56,4.01453065]
[1752014854368,0.28432314,151.58,151.56,4.01453065]
[1752014859154,7.40772177,151.57,151.56,4.01453065]
[1752014864381,7.40772177,151.57,151.56,10.61257762]
[1752014867162,0.06,151.59,151.56,10.61257762]
[1752014867355,0.06,151.59,151.58,4.01453065]
[1752014867574,7.48018522,151.59,151.58,4.01453065]
[1752014868080,7.48018522,151.59,151.58,10.61170705]
[1752014870589,7.48018522,151.59,151.58,4.01453065]
[1752014878780,7.48018522,151.59,151.57,6.5975972]
[1752014878963,0.06,151.59,151.58,4.01453065]
[1752014879160,7.47604017,151.59,151.58,4.01453065]
[1752014881988,7.47604017,151.59,151.57,6.5975972]
[1752014882190,7.41604017,151.58,151.56,4.01453065]
[1752014882383,6.65676302,151.59,151.56,4.01453065]
[1752014882579,7.41635926,151.58,151.56,4.01453065]
[1752014882794,6.65676302,151.59,151.56,4.01453065]
[1752014882998,7.41635926,151.58,151.56,4.01453065]
[1752014883170,6.65676302,151.59,151.56,4.01453065]
[1752014883365,7.41635864,151.58,151.56,4.01453065]
[1752014883582,6.65676302,151.59,151.55,4.01453065]
[1752014883783,7.41636158,151.58,151.55,4.01453065]
[1752014883986,6.65676302,151.59,151.55,4.01453065]
[1752014884184,7.41636158,151.58,151.55,4.01453065]
[1752014884371,0.06,151.59,151.57,4.01453065]
[1752014884578,7.41635767,151.58,151.57,4.01453065]
[1752014888787,7.41635767,151.58,151.57,10.61214231]
[1752014889774,0.06,151.59,151.57,10.61214231]
[1752014889973,0.06,151.59,151.58,4.01453065]
[1752014890692,0.06,151.59,151.58,10.61170705]
[1752014892190,0.06,151.59,151.58,26.66982965]
[1752014893331,0.06,151.59,151.58,60.12982965]
[1752014894691,0.06,151.59,151.58,40.0571764]
[1752014895001,0.06,151.59,151.58,44.07170705]
[1752014908513,0.06,151.59,151.58,40.0571764]
[1752014908721,0.06,151.59,151.58,37.43453065]
[1752014908901,0.06,151.59,151.58,4.01453065]
[1752014911511,0.06,151.59,151.55,6.59848234]
[1752014911815,0.06,151.59,151.58,4.01453065]
[1752014913214,7.45996956,151.59,151.56,4.01453065]
[1752014913393,0.06,151.59,151.56,4.01453065]
[1752014914416,0.06,151.59,151.54,33.44]
[1752014914604,0.06,151.59,151.55,4.01453065]
[1752014915010,7.39963858,151.58,151.55,4.01453065]
[1752014915824,7.39963858,151.58,151.56,4.01453065]
[1752014917602,13.99693247,151.58,151.55,4.01453065]
[1752014918222,6.59729389,151.58,151.55,4.01453065]
[1752014918813,25.30639006,151.59,151.55,4.01453065]
[1752014919015,0.28432314,151.58,151.55,4.01453065]
[1752014919221,0.28432314,151.58,151.56,4.01453065]
[1752014925622,6.8815199,151.58,151.56,4.01453065]
[1752014934627,0.28432314,151.58,151.56,4.01453065]
[1752014938508,0.06,151.59,151.57,4.01453065]
[1752014938707,0.06,151.59,151.58,4.01453065]
[1752014943335,0.06,151.59,151.58,10.61170705]
[1752014960643,0.06,151.59,151.58,6.5971764]
[1752014960818,0.06,151.59,151.58,10.61170705]
[1752014962217,0.06,151.59,151.58,4.01453065]
[1752014969850,0.06,151.59,151.58,10.61170705]
[1752014976258,0.06,151.59,151.58,4.01453065]
[1752014978664,0.06,151.59,151.57,4.01453065]
[1752014981761,0.06,151.59,151.57,10.61213541]
[1752014982057,0.06,151.59,151.58,4.01453065]
[1752014984140,0.06,151.59,151.58,10.61170705]
[1752014984657,0.06,151.59,151.58,4.01453065]
[1752014988874,0.06,151.59,151.58,10.61170705]
[1752014994974,0.06,151.59,151.58,4.01453065]
[1752015000578,0.06,151.59,151.57,10.61200719]
[1752015000975,0.06,151.59,151.57,4.01453065]
[1752015001555,7.41793076,151.58,151.57,4.01453065]
[1752015003784,7.41793076,151.58,151.55,39.95848234]
[1752015003981,0.06,151.59,151.56,4.01453065]
[1752015004284,7.41777254,151.58,151.54,4.01453065]
[1752015004586,7.41777254,151.57,151.54,4.01453065]
[1752015004765,0.28432314,151.58,151.55,4.01453065]
[1752015004964,10.67134703,151.59,151.55,4.01453065]
[1752015004965,7.41781898,151.57,151.55,4.01453065]
[1752015005261,0.28432314,151.58,151.55,4.01453065]
[1752015005465,7.417238,151.57,151.55,4.01453065]
[1752015005682,0.28432314,151.58,151.55,4.01453065]
[1752015005975,7.417238,151.57,151.55,4.01453065]
[1752015006160,0.28432314,151.58,151.55,4.01453065]
[1752015006361,7.41603784,151.57,151.55,4.01453065]
[1752015006669,0.28432314,151.58,151.55,4.01453065]
[1752015006869,7.41650731,151.57,151.55,4.01453065]
[1752015007176,0.28432314,151.58,151.55,4.01453065]
[1752015007382,7.4154725,151.57,151.55,4.01453065]
[1752015007587,0.28432314,151.58,151.55,4.01453065]
[1752015007784,7.41538899,151.57,151.55,4.01453065]
[1752015007968,0.28432314,151.58,151.55,4.01453065]
[1752015008164,7.41538899,151.57,151.55,4.01453065]
[1752015008379,0.28432314,151.58,151.55,4.01453065]
[1752015008569,4.29885379,151.56,151.53,0.03]
[1752015008874,11.42931799,151.55,151.53,0.03]
[1752015009051,7.41478734,151.54,151.53,0.03]
[1752015009251,0.28432314,151.54,151.53,0.03]
[1752015009453,16.65129751,151.54,151.53,0.03]
[1752015010084,23.25021528,151.54,151.53,0.03]
[1752015010265,15.83869497,151.54,151.53,0.03]
[1752015010565,75.25612335,151.54,151.53,0.03]
[1752015010981,222.75612335,151.54,151.53,0.03]
[1752015011376,222.75000888,151.54,151.53,0.03]
[1752015011684,224.36910888,151.54,151.53,0.03]
[1752015014454,219.43429994,151.54,151.53,0.03]
[1752015019358,182.05976929,151.54,151.53,0.03]
[1752015019563,212.02652042,151.54,151.53,0.03]
[1752015021666,211.09686042,151.54,151.53,0.03]
[1752015022165,6.58466702,151.55,151.53,0.03]
[1752015022366,39.96466702,151.55,151.53,0.03]
[1752015022885,6.58466702,151.55,151.53,0.03]
[1752015023474,13.18323221,151.55,151.53,0.03]
[1752015023781,17.19776286,151.55,151.53,0.03]
[1752015026883,50.57776286,151.55,151.53,0.03]
[1752015028389,50.55776286,151.55,151.53,0.03]
[1752015028765,46.54323221,151.55,151.53,0.03]
[1752015028986,50.55776286,151.55,151.53,0.03]
[1752015030382,17.19776286,151.55,151.53,0.03]
[1752015033604,4.01453065,151.54,151.53,0.03]
[1752015034603,29.54742042,151.54,151.53,0.03]
[1752015039513,13.18322509,151.55,151.53,0.03]
[1752015039890,17.19775574,151.55,151.53,0.03]
[1752015041009,17.25775574,151.55,151.53,0.03]
[1752015047219,4.93333776,151.54,151.53,0.03]
[1752015047393,17.25775574,151.55,151.53,0.03]
[1752015047590,6.64466702,151.55,151.54,4.01453065]
[1752015047794,6.64466702,151.55,151.53,0.03]
[1752015047996,14.04491035,151.55,151.53,4.04453065]
[1752015048227,6.64466702,151.55,151.53,4.04453065]
[1752015048937,6.64466702,151.55,151.53,0.03]
[1752015050319,7.40621596,151.54,151.53,0.03]
[1752015051398,7.40621596,151.54,151.53,4.04453065]
[1752015052221,7.40621596,151.54,151.53,0.03]
[1752015053821,12.34841779,151.54,151.53,0.03]
[1752015064911,7.40621596,151.54,151.53,0.03]
[1752015069944,12.35795866,151.54,151.53,0.03]
[1752015073241,12.35795866,151.54,151.53,4.04453065]
[1752015074140,12.35795866,151.54,151.53,10.64388391]
[1752015075056,7.40621596,151.54,151.53,6.62935326]
[1752015075248,12.35643017,151.54,151.53,10.64388391]
[1752015076054,12.37521061,151.54,151.53,10.64388391]
[1752015076343,4.95021421,151.54,151.53,10.64388391]
[1752015077142,6.64466702,151.55,151.53,10.64388391]
[1752015077341,6.64466702,151.55,151.54,4.01453065]
[1752015078728,14.06515088,151.55,151.54,4.01453065]
[1752015080356,14.06515088,151.55,151.53,4.04453065]
[1752015080538,6.64466702,151.55,151.53,4.04453065]
[1752015082651,6.64466702,151.55,151.54,4.01453065]
[1752015082827,14.06353327,151.55,151.54,4.01453065]
[1752015089273,14.06353327,151.55,151.54,10.61344842]
[1752015090263,6.64466702,151.55,151.54,10.61344842]
[1752015100844,6.64466702,151.55,151.54,4.01453065]
[1752015102157,6.64466702,151.55,151.54,36.61344842]
[1752015104868,6.64466702,151.55,151.54,69.93344842]
[1752015109078,6.64466702,151.55,151.54,6.59891777]
[1752015109383,19.00113297,151.55,151.54,37.33453065]
[1752015109582,19.00113297,151.55,151.54,33.32]
[1752015110559,19.00113297,151.55,151.53,10.64377835]
[1752015110771,4.94328773,151.54,151.53,43.96377835]
[1752015111261,4.94328773,151.54,151.53,37.36453065]
[1752015113981,4.94328773,151.54,151.53,33.35]
[1752015114214,12.35931901,151.54,151.53,33.35]
[1752015114564,12.35931901,151.54,151.53,37.36453065]
[1752015115882,7.41603128,151.54,151.53,37.36453065]
[1752015116781,7.41605186,151.54,151.53,4.04453065]
[1752015117096,7.41605186,151.54,151.53,37.36453065]
[1752015120776,7.41605186,151.54,151.53,4.04453065]
[1752015120986,7.41605186,151.54,151.53,37.36453065]
[1752015125181,6.64466702,151.55,151.53,37.36453065]
[1752015126317,6.64466702,151.55,151.54,4.01453065]
[1752015127404,6.64466702,151.55,151.54,10.61344842]
[1752015130890,0.06,151.55,151.54,10.61344842]
[1752015142497,0.06,151.55,151.53,6.62935326]
[1752015142697,0.06,151.55,151.54,37.31453065]
[1752015143003,0.06,151.55,151.54,4.01453065]
[1752015143207,0.06,151.55,151.53,0.03]
[1752015145213,7.46284241,151.55,151.53,0.03]
[1752015147011,0.06,151.55,151.53,0.03]
[1752015148019,4.07453065,151.55,151.53,0.03]
[1752015148323,11.41670653,151.54,151.53,0.03]
[1752015148914,38.00527853,151.54,151.53,0.03]
[1752015150007,44.6041963,151.54,151.53,0.03]
[1752015157925,70.6041963,151.54,151.53,0.03]
[1752015161896,27.87234788,151.54,151.53,0.03]
[1752015162102,18.64964886,151.54,151.53,0.03]
[1752015162298,10.67315218,151.55,151.53,0.03]
[1752015163633,4.01453065,151.54,151.53,0.03]
[1752015168124,6.65862153,151.55,151.53,0.03]
[1752015168342,4.01453065,151.54,151.53,0.03]
[1752015170231,0.06,151.55,151.53,0.03]
[1752015170731,0.06,151.55,151.54,4.01453065]
[1752015173135,0.06,151.55,151.54,10.61344842]
[1752015175117,0.06,151.55,151.54,4.01453065]
[1752015175316,0.06,151.55,151.53,4.04453065]
[1752015176819,0.06,151.55,151.53,6.30568923]
[1752015178337,0.06,151.55,151.53,0.03]
[1752015179236,4.98422894,151.55,151.53,0.03]
[1752015179940,0.06,151.55,151.53,0.03]
[1752015180121,4.98422894,151.55,151.53,0.03]
[1752015181949,0.06,151.55,151.53,0.03]
[1752015182136,4.98580915,151.55,151.53,0.03]
[1752015184127,0.06,151.55,151.53,0.03]
[1752015185547,7.45594301,151.55,151.53,0.03]
[1752015187151,4.93298543,151.54,151.53,0.03]
[1752015190129,7.45594301,151.55,151.53,0.03]
[1752015191859,13.73163224,151.55,151.53,0.03]
[1752015192355,7.45594301,151.55,151.53,0.03]
[1752015194056,14.0544291,151.55,151.53,0.03]
[1752015195656,7.45594301,151.55,151.53,0.03]
[1752015197854,14.05453641,151.55,151.53,0.03]
[1752015198061,6.6585934,151.55,151.53,0.03]
[1752015202343,7.40827851,151.54,151.53,0.03]
[1752015218253,14.00719628,151.54,151.53,0.03]
[1752015218668,7.40827851,151.54,151.53,0.03]
[1752015218866,36.95830992,151.54,151.53,0.03]
[1752015222258,184.45830992,151.54,151.53,0.03]
[1752015227461,184.46745923,151.54,151.53,0.03]
[1752015230585,200.96475367,151.54,151.46,4.01714164]
[1752015230784,12.5602389,151.5,151.46,4.01714164]
[1752015230962,7.41742782,151.49,151.46,4.01714164]
[1752015231160,12.5602389,151.5,151.46,4.01714164]
[1752015231384,7.4124008,151.49,151.46,4.01714164]
[1752015231681,19.16104664,151.5,151.46,4.01714164]
[1752015231881,7.4124008,151.49,151.46,4.01714164]
[1752015232079,19.16104664,151.5,151.46,4.01714164]
[1752015232289,7.4124008,151.49,151.46,4.01714164]
[1752015232583,19.16104664,151.5,151.46,4.01714164]
[1752015232756,7.41046249,151.49,151.46,4.01714164]
[1752015232973,19.16104664,151.5,151.46,4.01714164]
[1752015233158,7.41046545,151.49,151.46,4.01714164]
[1752015233878,19.16104664,151.5,151.46,4.01714164]
[1752015238776,15.143905,151.5,151.46,4.01714164]
[1752015238968,19.16104664,151.5,151.46,4.01714164]
[1752015241393,15.143905,151.5,151.47,4.01714164]
[1752015243592,15.143905,151.5,151.45,6.60272282]
[1752015243805,15.143905,151.5,151.47,4.01714164]
[1752015247772,8.54309726,151.5,151.47,4.01714164]
[1752015248077,8.54309726,151.5,151.48,4.01714164]
[1752015248298,8.54309726,151.5,151.49,4.01714164]
[1752015249487,8.54309726,151.5,151.48,4.01714164]
[1752015250083,8.54309726,151.5,151.49,4.01714164]
[1752015263226,13.48725999,151.5,151.49,4.01714164]
[1752015265331,13.48725999,151.5,151.49,10.61823742]
[1752015265530,8.54309726,151.5,151.49,10.61823742]
[1752015268523,8.54309726,151.5,151.49,4.01714164]
[1752015269117,8.54309726,151.5,151.48,6.60140162]
[1752015269322,8.54309726,151.5,151.49,4.01714164]
[1752015269726,8.54309726,151.5,151.47,6.60182413]
[1752015269925,8.54309726,151.5,151.49,4.01714164]
[1752015270324,13.48612849,151.5,151.49,4.01714164]
[1752015271137,13.48612849,151.5,151.48,4.01714164]
[1752015271319,8.54309726,151.5,151.48,4.01714164]
[1752015274031,4.94345056,151.49,151.47,4.01714164]
[1752015274213,8.54309726,151.5,151.47,4.01714164]
[1752015274422,4.94338718,151.49,151.47,4.01714164]
[1752015274630,8.54309726,151.5,151.47,4.01714164]
[1752015274837,4.94338915,151.49,151.47,4.01714164]
[1752015275129,8.54309726,151.5,151.47,4.01714164]
[1752015275313,4.94337531,151.49,151.47,4.01714164]
[1752015275517,8.54309726,151.5,151.47,4.01714164]
[1752015275833,4.94337531,151.49,151.47,4.01714164]
[1752015276033,8.54309726,151.5,151.47,4.01714164]
[1752015276237,4.94344886,151.49,151.47,4.01714164]
[1752015276440,8.54309726,151.5,151.47,4.01714164]
[1752015276615,4.94358833,151.49,151.47,4.01714164]
[1752015276810,8.54309726,151.5,151.47,4.01714164]
[1752015277138,4.94358833,151.49,151.47,4.01714164]
[1752015277325,8.54309726,151.5,151.47,4.01714164]
[1752015277622,4.94380705,151.49,151.47,4.01714164]
[1752015277924,8.54309726,151.5,151.47,4.01714164]
[1752015278122,4.94372988,151.49,151.47,4.01714164]
[1752015278341,8.54309726,151.5,151.47,4.01714164]
[1752015278518,4.94400677,151.49,151.47,4.01714164]
[1752015278719,8.54309726,151.5,151.47,4.01714164]
[1752015278918,4.94400875,151.49,151.47,4.01714164]
[1752015279136,8.54309726,151.5,151.47,4.04714164]
[1752015279335,4.94415126,151.49,151.47,4.04714164]
[1752015279536,8.54309726,151.5,151.47,4.04714164]
[1752015279734,4.94414929,151.49,151.47,4.04714164]
[1752015279944,8.54309726,151.5,151.47,4.04714164]
[1752015280120,4.94415126,151.49,151.47,4.04714164]
[1752015280319,8.54309726,151.5,151.47,4.04714164]
[1752015280537,4.94429753,151.49,151.47,4.04714164]
[1752015280735,8.54309726,151.5,151.47,4.04714164]
[1752015280935,4.94437668,151.49,151.47,4.04714164]
[1752015281135,8.54309726,151.5,151.47,4.04714164]
[1752015281445,4.94462297,151.49,151.47,4.04714164]
[1752015281625,8.54309726,151.5,151.47,4.04714164]
[1752015281825,12.36131666,151.49,151.47,4.04714164]
[1752015282129,8.54309726,151.5,151.47,4.04714164]
[1752015282330,4.94488081,151.49,151.47,4.04714164]
[1752015282543,8.54309726,151.5,151.47,4.04714164]
[1752015282720,4.94480561,151.49,151.47,4.04714164]
[1752015282921,8.54309726,151.5,151.47,4.04714164]
[1752015283122,4.94480363,151.49,151.47,4.04714164]